bitfinex-derivatives/quotes_SOLF0:USTF0_20250319
["timestamp","ask_amount","ask_price","bid_price","bid_amount"]
[1742390397609,36.16,129.17,129.1,8.08191]
[1742390397815,36.16,129.17,129.1,0.33621]
[1742390398012,0.05870116,129.15,129.12,0.05066639]
[1742390399507,7.7438,129.14,129.12,0.05066639]
[1742390399818,0.05870116,129.15,129.12,0.05066639]
[1742390400118,0.05870116,129.15,129.12,7.79486639]
[1742390400519,0.05870116,129.15,129.12,0.05066639]
[1742390400713,7.7439,129.13,129.12,0.05066639]
[1742390401818,7.7439,129.13,129.02,4.3124]
[1742390401819,7.74,129.13,129.02,4.3124]
[1742390402119,94.7337587,129.12,129.02,6.53602536]
[1742390402317,94.7337587,129.12,128.98,41.46817445]
[1742390402318,50.7844587,129.06,128.98,41.46817445]
[1742390402617,86.8444587,129.06,128.98,77.52817445]
[1742390402819,7.7516,129.01,128.98,41.46817445]
[1742390403023,36.0750249,129.03,129.01,0.05561346]
[1742390403208,50.7844587,129.02,128.98,41.46817445]
[1742390403411,7.7523,128.99,128.98,41.46817445]
[1742390403613,86.8044587,129.0,128.92,77.46817445]
[1742390403821,7.7527,128.99,128.92,85.22437445]
[1742390404018,303.14,129.02,128.92,128.25263315]
[1742390404317,267.14,129.02,128.94,50.7844587]
[1742390404626,267.14,129.02,128.95,42.44775098]
[1742390404918,0.05657079,128.99,128.97,0.0514625]
[1742390405424,0.05657079,128.99,128.98,36.02]
[1742390405717,0.05657079,128.99,128.97,0.0514625]
[1742390408025,54.9639587,129.11,128.98,93.20664572]
[1742390408224,54.9639587,129.11,129.0,50.7844587]
[1742390408528,54.9639587,129.11,129.02,7.7501]
[1742390408729,91.3239587,129.11,129.01,36.36]
[1742390408923,91.3239587,129.11,129.03,7.7496]
[1742390409128,0.05893957,129.07,129.05,0.0565088]
[1742390409424,3.957e-05,129.07,129.06,7.7481]
[1742390409822,3.957e-05,129.07,129.05,54.8368675]
[1742390410023,3.957e-05,129.07,129.05,4.0524088]
[1742390410225,3.957e-05,129.07,129.05,0.0565088]
[1742390410519,3.957e-05,129.07,129.06,14.1874883]
[1742390410724,3.9887,129.16,129.06,75.26507683]
[1742390410926,3.9887,129.16,129.08,50.7844587]
[1742390411126,3.9887,129.16,129.07,53.14061813]
[1742390411127,40.3887,129.16,129.06,54.8050587]
[1742390411327,4.0686,129.15,129.07,42.83826668]
[1742390411527,4.0686,129.15,129.1,7.7453]
[1742390412032,0.0541175,129.14,129.11,0.05370547]
[1742390413237,36.3741175,129.14,129.11,0.05370547]
[1742390414035,44.1178175,129.14,129.11,0.05370547]
[1742390414431,0.0541175,129.14,129.11,36.29370547]
[1742390414632,1.41817235,129.19,129.13,50.7844587]
[1742390414834,4.138,129.27,129.17,50.7844587]
[1742390415032,36.6,129.26,129.18,36.62]
[1742390415228,87.3844587,129.26,129.18,36.62]
[1742390415428,354.6644587,129.26,129.16,36.6]
[1742390415634,50.7844587,129.24,129.14,36.62]
[1742390415834,50.84006584,129.22,129.12,36.62]
[1742390416034,7.7407,129.19,129.12,44.3643]
[1742390416228,36.62,129.19,129.09,4.2606]
[1742390416432,54.9224587,129.18,129.1,36.62]
[1742390416638,8.4153,129.18,129.11,6.43417814]
[1742390416836,8.4153,129.18,129.1,87.4044587]
[1742390417137,0.05064963,129.16,129.13,0.05232198]
[1742390418138,7.79284963,129.16,129.13,0.05232198]
[1742390418328,303.84,129.25,129.14,6.43259586]
[1742390418528,326.1777587,129.25,129.13,87.35678068]
[1742390418834,36.68,129.24,129.13,87.3044587]
[1742390419037,50.7844587,129.23,129.13,36.52]
[1742390419733,50.7844587,129.16,129.07,4.0728]
[1742390419934,50.7844587,129.14,129.04,50.7844587]
[1742390420241,50.7844587,129.14,129.05,6.44217416]
[1742390420438,7.7452,129.11,129.04,10.30970615]
[1742390420738,7.7452,129.11,129.03,15.9204]
[1742390420739,36.62,129.1,129.03,8.1709]
[1742390420932,36.62,129.09,129.03,8.1709]
[1742390421131,36.66891387,129.09,129.06,0.04965487]
[1742390422038,7.7469,129.08,129.06,0.04965487]
[1742390422243,36.66891387,129.09,129.06,0.04965487]
[1742390423036,44.41541387,129.09,129.06,0.04965487]
[1742390423241,36.66891387,129.09,129.06,0.04965487]
[1742390423742,25.39222935,129.08,128.98,59.2034587]
[1742390423931,54.9929587,129.08,128.98,8.419]
[1742390424132,50.7844587,129.06,128.96,87.2644587]
[1742390424339,36.46,129.05,128.96,50.7844587]
[1742390424736,267.22,129.04,128.94,87.2444587]
[1742390425044,0.05968952,129.02,128.99,0.05109516]
[1742390425735,7.7517,129.0,128.99,0.05109516]
[1742390426541,36.43968952,129.02,128.93,4.2768]
[1742390426740,4.0406,129.01,128.93,4.2768]
[1742390426942,4.0406,129.01,128.9,87.1244587]
[1742390427142,4.0406,129.01,128.9,50.7844587]
[1742390427338,4.0406,129.01,128.94,7.7551]
[1742390427543,4.0406,129.01,128.92,87.1044587]
[1742390427852,0.0517383,128.99,128.96,0.04940447]
[1742390429555,0.0517383,128.99,128.96,7.80300447]
[1742390429858,36.24,128.98,128.96,0.04940447]
[1742390430157,328.97222935,128.98,128.88,55.1149587]
[1742390430354,29.62652935,128.97,128.88,4.3305]
[1742390430651,55.0187587,128.97,128.85,54.8793587]
[1742390430852,55.0187587,128.97,128.86,4.1207]
[1742390431251,0.05410791,128.93,128.9,0.05108571]
[1742390432847,7.91e-06,128.93,128.91,87.0644587]
[1742390433359,7.91e-06,128.93,128.92,7.7565]
[1742390433854,7.91e-06,128.93,128.92,15.5165]
[1742390434157,23.2297,129.15,128.92,15.5165]
[1742390434158,7.7501,129.03,128.92,24.46921928]
[1742390434349,303.66,129.04,128.95,50.7844587]
[1742390434549,303.66,129.04,128.96,36.22]
[1742390434755,303.66,129.04,128.95,50.7844587]
[1742390434756,303.66,129.04,128.97,36.2]
[1742390435061,303.66,129.04,128.97,43.9532]
[1742390435255,0.05193164,129.02,128.99,0.0545657]
[1742390436859,0.05193164,129.02,129.01,7.7511]
[1742390437259,0.05193164,129.02,129.0,36.04]
[1742390437454,0.05193164,129.02,129.01,7.7511]
[1742390438061,3.9168,129.08,128.99,86.8390244]
[1742390438249,50.7844587,129.07,129.0,6.42532242]
[1742390438454,25.39222935,129.03,128.98,7.7526]
[1742390438657,354.2644587,129.03,128.95,36.02]
[1742390438959,50.7844587,129.03,128.96,6.437573]
[1742390439156,354.2444587,129.03,128.95,36.02]
[1742390439358,0.05760746,129.0,128.98,0.05412565]
[1742390439560,0.05760746,129.0,128.99,7.7523]
[1742390440265,61.40983681,129.0,128.91,4.2334]
[1742390440459,25.39222935,128.99,128.92,6.44917574]
[1742390440658,29.31012935,128.99,128.91,40.1934]
[1742390440964,3.9179,128.99,128.92,16.77371324]
[1742390441263,35.96,129.0,128.93,6.45453296]
[1742390441462,0.05699547,128.97,128.94,6.5086681]
[1742390441662,0.05699547,128.97,128.94,0.05454016]
[1742390442161,0.05699547,128.97,128.96,7.7541]
[1742390442959,267.46,129.03,129.0,45.75120453]
[1742390443164,267.46,129.03,129.0,37.99990453]
[1742390443860,261.68276947,129.16,129.0,73.79990453]
[1742390444063,4.0847,129.12,129.01,67.55022848]
[1742390444266,0.05846623,129.06,129.03,50.8334501]
[1742390444469,4.0847,129.12,129.07,7.7472]
[1742390444661,4.0847,129.12,129.04,35.9]
[1742390445060,4.0847,129.12,129.08,7.7466]
[1742390445260,4.0847,129.12,129.04,35.9]
[1742390445261,4.0847,129.12,129.07,35.86]
[1742390445461,303.28954955,129.13,129.07,35.86]
[1742390445662,0.05070805,129.11,129.08,0.05529215]
[1742390445859,7.79600805,129.11,129.08,0.05529215]
[1742390446065,43.6,129.11,129.0,37.99990453]
[1742390446268,50.7844587,129.06,129.01,6.44937073]
[1742390446468,50.7844587,129.06,129.0,37.99990453]
[1742390446868,54.8240587,129.06,129.0,37.99990453]
[1742390447363,0.05779944,129.04,129.02,0.05808075]
[1742390447662,86.64225814,129.04,129.02,0.05808075]
[1742390447867,86.64225814,129.04,129.0,37.99990453]
[1742390448062,50.7844587,129.01,129.0,37.99990453]
[1742390448371,354.0244587,129.01,128.93,35.82]
[1742390448567,50.7844587,128.99,128.91,35.8]
[1742390448772,50.7844587,128.99,128.92,6.4646443]
[1742390448968,0.04906371,128.96,128.94,0.05232237]
[1742390449272,25.39222935,128.95,128.94,0.05232237]
[1742390449666,7.7561,128.93,128.88,41.46817445]
[1742390449971,86.6644587,128.92,128.88,41.46817445]
[1742390450159,35.86,128.91,128.87,4.0191]
[1742390450360,50.7844587,128.9,128.82,3.9693]
[1742390450659,25.39222935,128.85,128.79,18.37985816]
[1742390450972,25.39222935,128.83,128.78,41.46817445]
[1742390451168,61.35222935,128.82,128.81,0.05730435]
[1742390451469,7.7635,128.81,128.78,41.46817445]
[1742390451668,61.40916212,128.82,128.78,41.46817445]
[1742390451669,50.7844587,128.8,128.78,41.46817445]
[1742390452062,61.40916212,128.82,128.78,41.46817445]
[1742390452262,86.80139147,128.82,128.78,41.46817445]
[1742390452566,36.01693277,128.82,128.79,0.0521094]
[1742390452768,0.05693277,128.82,128.79,0.0521094]
[1742390452969,7.81983277,128.82,128.79,0.0521094]
[1742390453273,0.05693277,128.82,128.79,0.0521094]
[1742390454069,7.7638,128.8,128.79,0.0521094]
[1742390454768,35.88,128.81,128.79,0.0521094]
[1742390455465,0.05693277,128.82,128.79,0.0521094]
[1742390457662,267.7,128.88,128.8,35.7]
[1742390457863,35.7,128.87,128.8,43.8968]
[1742390458073,86.4844587,128.87,128.8,43.8968]
[1742390458267,50.7844587,128.85,128.8,8.1968]
[1742390458466,86.4844587,128.87,128.8,8.1968]
[1742390458669,7.7608,128.85,128.8,8.1968]
[1742390458869,0.05682737,128.85,128.82,0.05853707]
[1742390459666,7.81782737,128.85,128.82,0.05853707]
[1742390459867,7.81782737,128.85,128.56,92.06542336]
[1742390459868,46.47,128.82,128.56,92.06542336]
[1742390460063,46.47,128.82,128.56,31.04]
[1742390460064,23.24,128.74,128.56,31.04]
[1742390460269,169.0,128.81,128.66,38.85]
[1742390460270,50.7844587,128.71,128.66,38.85]
[1742390460461,50.7844587,128.71,128.61,114.49521668]
[1742390460665,50.7844587,128.67,128.65,38.85]
[1742390461071,50.83801211,128.67,128.65,0.05028541]
[1742390461472,50.83801211,128.67,128.65,38.90028541]
[1742390461667,50.83801211,128.67,128.66,38.85]
[1742390461872,0.05355341,128.67,128.66,38.85]
[1742390462372,50.7844587,128.71,128.66,27.9360158]
[1742390462573,50.7844587,128.76,128.66,27.9360158]
[1742390462772,50.7844587,128.76,128.68,7.7709]
[1742390463069,50.7844587,128.76,128.69,311.24]
[1742390463273,50.7844587,128.79,128.7,4.1283]
[1742390463477,43.34,128.87,128.7,43.34]
[1742390463674,43.34,128.87,128.71,0.04961925]
[1742390463876,43.3,128.83,128.71,31.04]
[1742390464080,50.7844587,128.77,128.71,342.2]
[1742390464272,368.44200997,128.75,128.71,342.2]
[1742390464472,368.44200997,128.75,128.71,311.16]
[1742390464770,0.05909086,128.74,128.72,0.05273015]
[1742390465372,0.05909086,128.74,128.72,31.09273015]
[1742390465575,202.49587457,128.73,128.67,4.2339]
[1742390465774,50.7844587,128.7,128.55,50.7844587]
[1742390466074,50.7844587,128.63,128.56,47.3424]
[1742390466275,50.7844587,128.63,128.6,62.0]
[1742390466676,50.7844587,128.63,128.6,93.04]
[1742390466980,151.71141587,128.62,128.6,62.05169897]
[1742390467182,194.87141587,128.62,128.34,1658.0244587]
[1742390467388,50.7844587,128.58,128.47,4.0928]
[1742390467573,93.9444587,128.58,128.48,311.02]
[1742390467775,93.9444587,128.58,128.48,365.9268587]
[1742390468081,42.06670389,128.53,128.48,346.1824]
[1742390468380,0.04967535,128.52,128.49,0.05077634]
[1742390468880,0.04967535,128.52,128.49,31.09077634]
[1742390470180,0.04967535,128.52,128.5,62.0]
[1742390470380,0.04967535,128.52,128.49,31.09077634]
[1742390470780,42.90967535,128.52,128.49,0.05077634]
[1742390470980,42.90967535,128.52,128.43,7.7861]
[1742390471180,42.90967535,128.52,128.42,350.3308]
[1742390471383,50.7844587,128.51,128.44,62.0]
[1742390471775,50.7844587,128.49,128.44,93.04]
[1742390471978,93.5844587,128.49,128.44,93.04]
[1742390472184,50.7844587,128.47,128.45,0.05820749]
[1742390472382,42.76,128.46,128.45,0.03520749]
[1742390472980,0.05304076,128.48,128.45,0.03520749]
[1742390473180,50.7844587,128.47,128.42,42.68]
[1742390473487,50.7844587,128.45,128.42,31.04]
[1742390473879,50.7844587,128.45,128.37,268.12]
[1742390474077,50.7844587,128.45,128.37,341.82]
[1742390474480,0.05419778,128.42,128.4,0.04932364]
[1742390475184,0.05419778,128.42,128.41,62.0]
[1742390475776,0.05419778,128.42,128.41,69.7873]
[1742390476085,0.05419778,128.42,128.41,62.0]
[1742390476380,0.05419778,128.42,128.41,93.04]
[1742390477080,0.05419778,128.42,128.41,62.0]
[1742390477481,0.05419778,128.42,128.41,7.7873]
[1742390477680,0.05419778,128.42,128.4,0.04932364]
[1742390477880,0.05419778,128.42,128.4,31.08932364]
[1742390478476,0.05419778,128.42,128.41,62.0]
[1742390480184,0.05419778,128.42,128.4,0.04932364]
[1742390480989,92.7844587,128.41,128.4,0.04932364]
[1742390481190,92.7844587,128.41,128.35,11.8046]
[1742390481389,92.7844587,128.41,128.35,38.8306]
[1742390481581,92.7844587,128.41,128.35,31.04]
[1742390481785,92.7844587,128.41,128.33,42.0]
[1742390482497,0.05801722,128.38,128.36,0.05581412]
[1742390482788,0.05801722,128.38,128.37,7.7898]
[1742390483091,400.8,128.46,128.36,41.85581412]
[1742390483291,400.8,128.46,128.37,66.3582]
[1742390483492,359.0,128.46,128.37,66.3582]
[1742390483791,359.0,128.46,128.37,70.4991]
[1742390484193,0.05700178,128.43,128.4,0.05282413]
[1742390484690,50.84146048,128.43,128.4,0.05282413]
[1742390484888,50.7844587,128.41,128.32,309.94]
[1742390485194,41.66,128.4,128.32,340.98]
[1742390485394,50.7844587,128.39,128.35,7.7906]
[1742390485586,50.7844587,128.39,128.32,299.32]
[1742390485988,41.66,128.4,128.33,41.56]
[1742390486196,0.05472258,128.37,128.34,0.04903977]
[1742390486394,41.52,128.43,128.39,7.7882]
[1742390486694,41.52,128.43,128.36,41.52]
[1742390486890,41.52,128.43,128.4,7.7876]
[1742390487088,41.52,128.43,128.36,41.52]
[1742390487290,41.52,128.43,128.37,62.0]
[1742390487592,0.05226887,128.41,128.38,0.05702956]
[1742390488291,0.05226887,128.41,128.4,7.788]
[1742390488492,0.05226887,128.41,128.38,0.05702956]
[1742390488687,50.83672757,128.41,128.38,0.05702956]
[1742390489091,41.28,128.4,128.38,0.05702956]
[1742390489689,50.7844587,128.39,128.38,0.05702956]
[1742390490092,41.28,128.4,128.38,0.05702956]
[1742390490794,50.7844587,128.39,128.38,0.05702956]
[1742390491292,58.5644587,128.39,128.26,268.64]
[1742390491488,50.7844587,128.34,128.26,35.2856]
[1742390491685,50.7844587,128.32,128.26,35.2856]
[1742390491895,41.1,128.31,128.26,43.0819]
[1742390492095,41.1,128.31,128.26,35.2856]
[1742390492395,50.8352081,128.3,128.27,0.05404783]
[1742390492989,0.0507494,128.3,128.27,0.05404783]
[1742390493188,0.0507494,128.3,128.28,41.06]
[1742390493394,0.0507494,128.3,128.28,48.855]
[1742390493696,0.0507494,128.3,128.28,41.06]
[1742390494092,0.0507494,128.3,128.28,72.1]
[1742390494295,0.0507494,128.3,128.29,62.0]
[1742390494788,91.7244587,128.34,128.29,62.0]
[1742390494993,50.7844587,128.34,128.29,62.0]
[1742390495188,50.7844587,128.36,128.29,102.9]
[1742390495395,91.6844587,128.38,128.29,102.9]
[1742390495699,50.7844587,128.32,128.29,93.04]
[1742390496098,0.05395845,128.32,128.29,62.05775885]
[1742390496300,50.7844587,128.3,128.29,0.05775885]
[1742390496995,50.7844587,128.3,128.23,4.1634]
[1742390497191,50.7844587,128.28,128.23,35.2034]
[1742390497396,50.7844587,128.26,128.23,31.04]
[1742390498197,50.83575305,128.26,128.23,31.09358158]
[1742390498700,50.83575305,128.26,128.23,0.05358158]
[1742390498903,50.7844587,128.24,128.17,4.1634]
[1742390499100,50.7844587,128.24,128.17,35.2034]
[1742390499396,50.7844587,128.26,128.18,62.0]
[1742390499602,50.7844587,128.26,128.18,65.9936]
[1742390499799,50.7844587,128.24,128.18,97.0336]
[1742390500199,0.05634553,128.22,128.2,0.05208665]
[1742390500593,0.05634553,128.22,128.2,31.09208665]
[1742390500803,0.05634553,128.22,128.2,0.05208665]
[1742390501005,50.84080423,128.22,128.2,0.05208665]
[1742390501393,50.84080423,128.22,128.13,3.9936]
[1742390501899,50.7844587,128.2,128.13,3.9936]
[1742390502201,50.7844587,128.16,128.13,31.04]
[1742390502401,58.5873587,128.16,128.12,4.2443]
[1742390502596,50.84210787,128.16,128.13,0.05496577]
[1742390502792,0.05764917,128.16,128.15,7.8031]
[1742390502996,50.7844587,128.2,128.13,4.28546577]
[1742390503301,359.0,128.26,128.14,62.0]
[1742390503302,40.54,128.21,128.14,62.0]
[1742390503503,91.3244587,128.22,128.14,62.0]
[1742390503705,50.7844587,128.2,128.14,93.04]
[1742390503900,91.3244587,128.22,128.14,62.0]
[1742390504300,0.05543849,128.19,128.17,0.05961865]
[1742390505202,40.45543849,128.19,128.17,31.09961865]
[1742390505709,0.05543849,128.19,128.18,7.8013]
[1742390505909,402.21116259,128.24,128.18,7.8013]
[1742390505910,310.96670389,128.24,128.18,7.8013]
[1742390506110,50.7844587,128.22,128.18,31.04]
[1742390506407,91.2244587,128.22,128.18,31.04]
[1742390506609,99.0233587,128.22,128.18,31.04]
[1742390506809,91.2244587,128.22,128.18,31.04]
[1742390507112,0.05895988,128.21,128.19,0.05416103]
[1742390508709,50.7844587,128.2,128.19,0.05416103]
[1742390508914,7.8012,128.19,128.13,7.804]
[1742390509114,50.7844587,128.18,128.13,7.804]
[1742390509410,50.7844587,128.18,128.13,31.04]
[1742390509411,7.8023,128.17,128.13,31.04]
[1742390509617,50.7844587,128.18,128.13,31.04]
[1742390510313,50.73059632,128.14,128.08,8.3398]
[1742390510509,50.73059632,128.14,128.09,7.8066]
[1742390510713,50.73059632,128.14,128.08,39.3798]
[1742390511015,50.73059632,128.14,128.08,79.6198]
[1742390511418,50.7844587,128.12,128.08,31.04]
[1742390511608,50.84238023,128.12,128.1,0.05401545]
[1742390511910,0.05792153,128.12,128.1,62.05401545]
[1742390512110,359.0,128.21,128.11,40.34]
[1742390512316,61.30113467,128.22,128.11,95.4547587]
[1742390512516,61.30113467,128.22,128.12,4.3016]
[1742390512916,61.30113467,128.22,128.13,40.36]
[1742390513116,61.30113467,128.22,128.12,31.04]
[1742390513117,50.7844587,128.17,128.12,31.04]
[1742390513318,7.8029,128.16,128.12,31.04]
[1742390513516,50.7844587,128.17,128.13,0.0491759]
[1742390513817,0.05540581,128.15,128.13,0.0491759]
[1742390514214,50.83986451,128.15,128.13,0.0491759]
[1742390514420,0.05540581,128.15,128.13,0.0491759]
[1742390515322,50.7844587,128.19,128.13,4.1725759]
[1742390515719,359.0,128.2,128.13,4.1725759]
[1742390516022,319.9644587,128.21,128.14,4.1109]
[1742390516320,50.7844587,128.19,128.14,4.1109]
[1742390516722,50.83511192,128.19,128.15,0.05071806]
[1742390516918,7.8016,128.18,128.15,31.09071806]
[1742390517124,91.01511192,128.19,128.15,31.09071806]
[1742390517319,50.7844587,128.17,128.15,0.05071806]
[1742390517530,7.8025,128.16,128.15,0.05071806]
[1742390518118,50.7844587,128.17,128.15,0.05071806]
[1742390518519,40.1,128.16,128.1,62.0]
[1742390518718,50.7844587,128.13,128.1,93.04]
[1742390519116,90.8644587,128.13,128.1,62.0]
[1742390519321,50.7844587,128.11,128.1,62.0]
[1742390519721,50.7844587,128.11,128.09,0.04939572]
[1742390519921,50.7844587,128.11,128.05,40.04]
[1742390520127,0.05466102,128.11,128.09,0.0561966]
[1742390520928,0.05466102,128.11,128.09,31.0961966]
[1742390521423,25.44689037,128.11,128.09,31.0961966]
[1742390521618,25.44689037,128.11,128.04,4.0053]
[1742390521619,50.7844587,128.1,128.04,4.0053]
[1742390521816,50.7844587,128.07,128.04,31.04]
[1742390522016,50.7844587,128.05,128.01,7.8114]
[1742390522226,50.7844587,128.05,127.98,8.643]
[1742390522416,50.7844587,128.05,127.98,39.683]
[1742390522619,50.7844587,128.05,127.99,62.0]
[1742390523017,0.05728144,128.03,128.02,7.8111]
[1742390523423,50.7844587,128.07,128.0,39.88]
[1742390523619,0.05955719,128.04,128.03,7.8105]
[1742390524030,327.8514587,128.09,128.05,7.8089]
[1742390524221,320.0444587,128.09,128.03,39.78]
[1742390524622,58.5929587,128.07,128.03,31.04]
[1742390524818,50.7844587,128.05,128.03,31.04]
[1742390525125,50.84361601,128.05,128.03,0.05202391]
[1742390525326,58.65321601,128.05,128.03,0.05202391]
[1742390525539,50.84361601,128.05,128.03,0.05202391]
[1742390525718,7.8108,128.03,127.97,7.8135]
[1742390525924,50.7844587,127.99,127.87,269.3]
[1742390526119,50.7844587,127.97,127.87,277.7825]
[1742390526323,50.7844587,127.99,127.88,90.5044587]
[1742390526530,39.68,128.0,127.88,90.5044587]
[1742390526726,50.7844587,128.01,127.9,50.7844587]
[1742390526932,0.05205529,127.95,127.93,0.05623017]
[1742390527229,308.96,128.02,127.94,39.64]
[1742390527421,269.3,128.02,127.95,43.7932]
[1742390528430,0.05589786,128.0,127.97,0.05438567]
[1742390528628,0.05589786,128.0,127.99,7.8127]
[1742390528826,0.05589786,128.0,127.99,69.8127]
[1742390529021,39.5,128.06,127.99,62.0]
[1742390529531,7.8102,128.04,128.0,7.812]
[1742390529731,39.5,128.06,127.99,62.0]
[1742390530030,7.8109,128.03,127.99,93.04]
[1742390530223,50.7844587,128.02,128.01,0.04983567]
[1742390530425,90.2244587,128.02,127.86,25.39222935]
[1742390530634,58.5997587,127.96,127.9,7.8181]
[1742390530931,50.7844587,127.94,127.9,31.04]
[1742390531324,50.7844587,127.92,127.87,3.9906]
[1742390531626,90.2044587,127.92,127.91,0.05645272]
[1742390532124,90.2044587,127.92,127.9,0.05906757]
[1742390533330,7.8185,127.9,127.84,69.8217]
[1742390533627,50.7844587,127.89,127.84,62.0]
[1742390533821,25.39222935,127.85,127.8,7.8239]
[1742390534021,64.75222935,127.85,127.8,31.04]
[1742390534634,0.05227423,127.84,127.81,0.05893052]
[1742390534826,25.39222935,127.82,127.76,35.2857]
[1742390535027,25.39222935,127.8,127.76,31.04]
[1742390535227,25.39222935,127.79,127.76,31.04]
[1742390535425,25.39222935,127.8,127.73,39.34]
[1742390535733,39.34,127.81,127.73,39.32]
[1742390535923,50.7844587,127.8,127.73,31.04]
[1742390536121,50.8400949,127.78,127.76,0.03702436]
[1742390536535,50.8400949,127.78,127.71,12.1715]
[1742390536733,50.7844587,127.76,127.71,12.1715]
[1742390536929,0.0556362,127.78,127.72,39.3]
[1742390537132,90.0844587,127.82,127.72,39.3]
[1742390537631,50.7844587,127.78,127.72,31.04]
[1742390537832,50.7844587,127.76,127.72,31.04]
[1742390538025,50.7844587,127.74,127.69,7.831]
[1742390538230,90.0844587,127.74,127.66,12.4368]
[1742390538429,25.39222935,127.7,127.66,31.04]
[1742390538632,25.39222935,127.68,127.66,31.04]
[1742390539130,308.96,127.71,127.64,39.28]
[1742390539328,0.0600238,127.68,127.59,12.3467]
[1742390539535,25.39222935,127.66,127.63,7.8345]
[1742390539731,39.36,127.68,127.59,12.3467]
[1742390539929,0.053138,127.66,127.59,12.3467]
[1742390540132,39.46,127.77,127.65,25.39222935]
[1742390540434,50.7844587,127.75,127.66,101.46]
[1742390540634,50.7844587,127.73,127.66,101.46]
[1742390540834,50.7844587,127.73,127.66,132.5]
[1742390541036,50.7844587,127.73,127.68,7.8313]
[1742390541235,0.05884326,127.71,127.68,0.05133994]
[1742390541436,39.42,127.76,127.69,39.42]
[1742390541735,90.2244587,127.75,127.68,31.04]
[1742390541935,90.2244587,127.75,127.67,47.7615]
[1742390542135,50.7844587,127.75,127.67,47.7615]
[1742390542334,25.39222935,127.77,127.67,47.7615]
[1742390542538,90.2244587,127.79,127.67,47.7615]
[1742390542831,50.7844587,127.81,127.71,0.0507618]
[1742390543038,50.7844587,127.81,127.72,39.42]
[1742390543231,398.42,127.83,127.72,39.42]
[1742390543431,449.2044587,127.83,127.72,70.46]
[1742390543628,491.27116259,127.83,127.72,70.46]
[1742390543835,132.27116259,127.83,127.72,70.46]
[1742390544031,0.05633306,127.79,127.76,0.05013472]
[1742390544231,0.05633306,127.79,127.78,7.8257]
[1742390544432,11.02670389,127.83,127.77,4.2469]
[1742390544633,18.84980389,127.83,127.78,7.8255]
[1742390544831,61.81116259,127.83,127.77,8.5108]
[1742390545334,61.81116259,127.83,127.78,7.8254]
[1742390545539,50.7844587,127.81,127.74,39.48]
[1742390545739,50.83568555,127.81,127.79,0.05472717]
[1742390545935,0.05122685,127.81,127.79,0.05472717]
[1742390546136,0.05122685,127.81,127.77,39.46]
[1742390546331,0.05122685,127.81,127.8,7.8245]
[1742390546532,50.7844587,127.87,127.8,39.44]
[1742390546736,0.30748,127.88,127.8,90.2244587]
[1742390546938,0.30748,127.88,127.81,8.5108]
[1742390547839,0.05790208,127.86,127.83,0.05823289]
[1742390548041,0.05790208,127.86,127.83,39.45823289]
[1742390548537,0.05790208,127.86,127.85,7.8215]
[1742390548739,0.30748,127.88,127.83,39.45823289]
[1742390549444,50.7844587,127.94,127.83,39.45823289]
[1742390549640,50.7844587,127.94,127.91,7.8175]
[1742390549837,309.22,127.95,127.84,62.0]
[1742390549838,269.94,127.95,127.87,39.26]
[1742390550137,0.05062123,127.94,127.91,0.04994697]
[1742390550343,0.05062123,127.94,127.91,39.28994697]
[1742390550542,50.7844587,127.98,127.91,39.24]
[1742390550739,50.7844587,128.0,127.91,39.24]
[1742390550939,269.92,128.05,127.92,4.3653]
[1742390550940,50.7844587,128.02,127.92,4.3653]
[1742390551137,50.7844587,128.02,127.98,7.8131]
[1742390551335,50.7844587,128.02,127.92,8.3253]
[1742390551336,50.7844587,128.02,127.95,39.18]
[1742390551737,7.8121,128.01,127.96,7.8144]
[1742390552038,50.7844587,128.0,127.93,39.12]
[1742390552235,50.7844587,127.98,127.97,0.0502427]
[1742390552537,50.7844587,127.98,127.87,269.84]
[1742390552734,50.7844587,127.95,127.88,39.08]
[1742390552934,39.06,127.97,127.88,39.08]
[1742390553136,50.7844587,127.98,127.89,62.0]
[1742390553532,39.02,127.97,127.89,62.0]
[1742390553741,50.83450921,127.95,127.92,0.0503991]